bitfinex-derivatives/quotes_BTCF0:USTF0_20250811
["timestamp","ask_amount","ask_price","bid_price","bid_amount"]
[1754945725994,1.13604208,118990.0,118980.0,0.29037549]
[1754945726997,0.74797399,118990.0,118980.0,0.29037549]
[1754945727798,1.13604208,118990.0,118980.0,0.29037549]
[1754945728704,1.13604208,118990.0,118980.0,1.06277549]
[1754945729202,0.60847399,118990.0,118980.0,1.06277549]
[1754945729791,0.52443459,118990.0,118980.0,1.45084358]
[1754945729999,0.16363459,118990.0,118980.0,1.45084358]
[1754945730398,0.16363459,118990.0,118980.0,1.81164358]
[1754945730602,0.16363459,118990.0,118980.0,2.02973158]
[1754945734008,0.16363459,118990.0,118980.0,1.64166349]
[1754945734308,0.16363459,118990.0,118980.0,2.02973158]
[1754945737612,0.16363459,118990.0,118980.0,1.42357549]
[1754945737813,0.63574128,118990.0,118980.0,0.65117549]
[1754945738013,0.63574128,118990.0,118980.0,1.42393549]
[1754945738511,0.23080542,118990.0,118980.0,1.42393549]
[1754945739211,0.23080542,118990.0,118980.0,1.81200358]
[1754945739212,0.14676682,118990.0,118980.0,1.81200358]
[1754945740613,0.14676682,118990.0,118980.0,1.42393549]
[1754945740920,0.14676682,118990.0,118980.0,1.81200358]
[1754945741413,0.11573682,118990.0,118980.0,1.78122358]
[1754945743209,0.06664682,118990.0,118980.0,1.73356358]
[1754945744117,0.20614682,118990.0,118980.0,1.73356358]
[1754945744418,0.06664682,118990.0,118980.0,1.73356358]
[1754945748721,0.06664682,118990.0,118980.0,1.88401241]
[1754945750516,0.06664682,118990.0,118980.0,0.72318432]
[1754945750817,0.15068522,118990.0,118980.0,1.49502432]
[1754945751019,0.53875331,118990.0,118980.0,0.36238432]
[1754945751223,0.89955331,118990.0,118980.0,1.13430432]
[1754945752122,0.89955331,118990.0,118980.0,0.98385549]
[1754945752524,0.89955331,118990.0,118980.0,0.98385439]
[1754945752824,0.89955331,118990.0,118980.0,0.89980899]
[1754945753023,0.89955331,118990.0,118980.0,0.98385439]
[1754945753526,0.89955331,118990.0,118980.0,0.12788899]
[1754945753925,0.89955331,118990.0,118980.0,0.89964899]
[1754945754126,1.27767683,118990.0,118980.0,0.12788899]
[1754945754722,1.41717683,118990.0,118980.0,0.12788899]
[1754945755624,1.63526483,118990.0,118980.0,0.12788899]
[1754945756331,1.68387483,118990.0,118980.0,0.12788899]
[1754945758134,1.69217135,118990.0,118980.0,0.12788899]
[1754945763637,1.69217135,118990.0,118980.0,0.18450899]
[1754945764836,1.69217135,118990.0,118980.0,0.20896899]
[1754945765036,1.49688335,118990.0,118980.0,0.24760899]
[1754945766741,1.49688335,118990.0,118980.0,0.22438899]
[1754945770237,1.49688335,118990.0,118980.0,0.20964899]
[1754945770644,1.47955983,118990.0,118980.0,0.20964899]
[1754945772853,1.64764783,118990.0,118980.0,0.12788899]
[1754945774350,1.66455278,118990.0,118980.0,0.12788899]
[1754945777660,1.49646478,118990.0,118980.0,0.12788899]
[1754945778656,0.0840557,118960.0,118950.0,0.03245]
[1754945778976,0.0840698,118940.0,118930.0,1.03040573]
[1754945779149,0.52224789,118940.0,118930.0,0.25860573]
[1754945779346,0.53621789,118940.0,118930.0,0.1556169]
[1754945779546,0.52224789,118940.0,118930.0,0.2021869]
[1754945780559,0.52224789,118940.0,118930.0,0.2061869]
[1754945780758,0.52234789,118940.0,118930.0,0.2082869]
[1754945781062,0.52234789,118940.0,118930.0,0.2072869]
[1754945781863,0.52234789,118940.0,118930.0,0.33407589]
[1754945782057,0.53631789,118940.0,118930.0,0.33407589]
[1754945782766,0.56928789,118940.0,118930.0,0.33407589]
[1754945783152,0.59237789,118940.0,118930.0,0.33407589]
[1754945785061,0.95317789,118940.0,118930.0,0.24999899]
[1754945785560,0.97013355,118940.0,118930.0,0.13188899]
[1754945785753,0.97013355,118940.0,118930.0,0.18717899]
[1754945785950,0.97013355,118940.0,118930.0,0.2166328]
[1754945786156,0.97013355,118940.0,118930.0,0.2259828]
[1754945788564,1.10963355,118940.0,118930.0,0.2259828]
[1754945788760,1.10963355,118940.0,118930.0,0.3100594]
[1754945789459,1.10963355,118940.0,118930.0,0.2259828]
[1754945789668,1.10963355,118940.0,118930.0,0.3100594]
[1754945789964,1.10963355,118940.0,118930.0,0.1872428]
[1754945792560,1.10963355,118940.0,118930.0,0.1319528]
[1754945793557,1.08628355,118940.0,118930.0,0.1319528]
[1754945793958,1.08628355,118940.0,118930.0,0.1644028]
[1754945793959,0.69821546,118940.0,118930.0,0.1644028]
[1754945794163,0.69821546,118940.0,118930.0,0.1634028]
[1754945794164,1.08628355,118940.0,118930.0,0.1634028]
[1754945794564,1.08628355,118940.0,118930.0,0.1614028]
[1754945797273,1.08628355,118940.0,118930.0,0.1289528]
[1754945798266,1.08628355,118940.0,118930.0,0.1842428]
[1754945800582,1.08628355,118940.0,118930.0,0.1289528]
[1754945801682,1.08618355,118940.0,118930.0,0.1039528]
[1754945801875,1.47425164,118940.0,118930.0,0.1039528]
[1754945802182,1.08618355,118940.0,118930.0,0.1039528]
[1754945805878,1.25434355,118940.0,118930.0,0.00285143]
[1754945806080,1.64251164,118940.0,118930.0,0.00295143]
[1754945806280,1.25444355,118940.0,118930.0,0.00295143]
[1754945806590,1.08628355,118940.0,118930.0,0.00295143]
[1754945807885,1.85836355,118940.0,118930.0,0.00295143]
[1754945810083,2.24643164,118940.0,118930.0,0.00295143]
[1754945810284,1.47029546,118940.0,118930.0,0.00295143]
[1754945810586,0.0840977,118900.0,118890.0,0.83838362]
[1754945810792,0.56673579,118900.0,118890.0,0.09527]
[1754945810992,0.56673579,118900.0,118890.0,0.1793747]
[1754945811790,0.6354993,118900.0,118890.0,0.09727]
[1754945811992,0.7750993,118900.0,118890.0,0.0021]
[1754945812293,1.1358993,118900.0,118890.0,0.09737]
[1754945812593,1.1358993,118900.0,118890.0,0.09937]
[1754945813089,1.13736353,118900.0,118890.0,0.09937]
[1754945813285,2.29751162,118900.0,118890.0,0.0041]
[1754945813489,1.90944353,118900.0,118890.0,0.0041]
[1754945814284,1.90944353,118900.0,118890.0,0.0021]
[1754945814481,1.90944353,118900.0,118890.0,0.0041]
[1754945814894,1.90944353,118900.0,118890.0,0.0021]
[1754945815089,1.90944353,118900.0,118890.0,0.0001]
[1754945815290,1.90944353,118900.0,118890.0,0.0011]
[1754945815590,1.91772978,118900.0,118890.0,0.0011]
[1754945819393,1.14564978,118900.0,118890.0,0.0011]
[1754945819604,1.91784978,118900.0,118890.0,0.0011]
[1754945821894,0.43112774,118900.0,118890.0,0.61854269]
[1754945822092,0.42966351,118900.0,118890.0,0.78675869]
[1754945822296,0.42966351,118900.0,118890.0,0.3986906]
[1754945822488,0.06886351,118900.0,118890.0,0.3986906]
[1754945822997,0.06886351,118900.0,118890.0,0.7594906]
[1754945823192,0.06886351,118900.0,118890.0,1.14755869]
[1754945824396,0.15296111,118900.0,118890.0,1.14755869]
[1754945824903,0.15296111,118900.0,118890.0,1.29821349]
[1754945825098,0.15296111,118900.0,118890.0,0.9101454]
[1754945825400,0.9627392,118900.0,118890.0,0.2069048]
[1754945825598,0.99786344,118900.0,118890.0,0.1517548]
[1754945825902,0.99786344,118900.0,118890.0,0.0011]
[1754945826288,1.77058344,118900.0,118890.0,0.0011]
[1754945826600,1.91008344,118900.0,118890.0,0.0011]
[1754945826998,1.52201535,118900.0,118890.0,0.0011]
[1754945827300,1.91008344,118900.0,118890.0,0.0011]
[1754945828297,1.89451344,118900.0,118890.0,0.0011]
[1754945831698,1.92861344,118900.0,118890.0,0.0011]
[1754945831897,1.90547344,118900.0,118890.0,0.0011]
[1754945832305,1.90547344,118900.0,118890.0,0.1517548]
[1754945835212,1.90535344,118900.0,118890.0,0.1517548]
[1754945838106,1.90535344,118900.0,118890.0,0.2092948]
[1754945838709,1.90535344,118900.0,118890.0,0.05864]
[1754945840615,1.51728535,118900.0,118890.0,0.05864]
[1754945840818,0.54932535,118900.0,118890.0,0.1427437]
[1754945841207,0.97212344,118900.0,118890.0,0.1427437]
[1754945841917,0.99408344,118900.0,118890.0,0.1427437]
[1754945843516,0.95998344,118900.0,118890.0,0.1427437]
[1754945843718,0.57191535,118900.0,118890.0,0.1078637]
[1754945843916,0.95998344,118900.0,118890.0,0.1427437]
[1754945844117,0.95998344,118900.0,118890.0,0.05864]
[1754945846318,2.45998344,118900.0,118890.0,0.05864]
[1754945849721,2.45998344,118900.0,118890.0,0.1427437]
[1754945850623,0.95998344,118900.0,118890.0,0.142743]
[1754945852117,0.51522535,118900.0,118890.0,0.142743]
[1754945852318,0.15442535,118900.0,118890.0,0.503543]
[1754945852623,0.15442535,118900.0,118890.0,1.447079]
[1754945853921,0.29412535,118900.0,118890.0,1.45556504]
[1754945854524,0.15442535,118900.0,118890.0,1.45556504]
[1754945858726,0.15442535,118900.0,118890.0,1.84363313]
[1754945859024,0.07032775,118900.0,118890.0,1.84363313]
[1754945859419,0.15442425,118900.0,118890.0,1.84363313]
[1754945859619,0.07032775,118900.0,118890.0,1.84363313]
[1754945859820,0.06886351,118900.0,118890.0,1.84363313]
[1754945861221,0.15296011,118900.0,118890.0,1.84363313]
[1754945861423,0.06886351,118900.0,118890.0,1.84363313]
[1754945864017,0.1681597,118930.0,118920.0,0.0840825]
[1754945864221,0.730102,118940.0,118930.0,0.0840754]
[1754945864517,1.14084009,118940.0,118930.0,0.1400354]
[1754945864715,1.14230378,118940.0,118930.0,0.1400354]
[1754945864919,1.14230378,118940.0,118930.0,0.14844187]
[1754945865128,1.14240378,118940.0,118930.0,0.14854187]
[1754945865330,1.14240378,118940.0,118930.0,0.1401354]
[1754945865520,0.75433569,118940.0,118930.0,0.1401354]
[1754945865721,1.14240378,118940.0,118930.0,0.1401354]
[1754945866022,0.75433569,118940.0,118930.0,0.1401354]
[1754945866326,1.14240378,118940.0,118930.0,0.1401354]
[1754945867132,1.20845412,118940.0,118930.0,0.1401354]
[1754945867334,1.21245412,118940.0,118930.0,0.1401354]
[1754945867826,1.21545412,118940.0,118930.0,0.1401354]
[1754945868633,1.35515412,118940.0,118930.0,0.1401354]
[1754945871632,0.96708603,118940.0,118930.0,0.1401354]
[1754945871932,1.35515412,118940.0,118930.0,0.1401354]
[1754945874034,1.35515412,118940.0,118930.0,0.1801354]
[1754945875434,0.96708603,118940.0,118930.0,0.1801354]
[1754945877030,0.38251083,118940.0,118930.0,0.1801354]
[1754945877328,0.07315034,118940.0,118930.0,0.92900349]
[1754945877531,0.12883034,118940.0,118930.0,0.92900349]
[1754945878331,0.21289854,118940.0,118930.0,0.92900349]
[1754945878536,0.17289854,118940.0,118930.0,0.5008354]
[1754945880633,0.03315034,118940.0,118930.0,0.6689954]
[1754945880937,0.03315034,118940.0,118930.0,1.05716349]
[1754945880938,0.03325034,118940.0,118930.0,1.05716349]
[1754945883838,0.03325034,118940.0,118930.0,0.88900349]
[1754945885938,0.03325034,118940.0,118930.0,1.05716349]
[1754945886539,0.03325034,118940.0,118930.0,0.6690954]
[1754945886838,0.03325034,118940.0,118930.0,1.05716349]
[1754945891844,0.06565034,118940.0,118930.0,0.6690954]
[1754945892044,0.08169034,118940.0,118930.0,0.7087054]
[1754945892345,0.16575854,118940.0,118930.0,0.7087054]
[1754945892544,0.18977854,118940.0,118930.0,0.7087054]
[1754945892732,0.10571034,118940.0,118930.0,0.5405454]
[1754945893332,0.18977854,118940.0,118930.0,0.5405454]
[1754945893940,0.18977854,118940.0,118930.0,0.5405354]
[1754945895446,0.18977854,118940.0,118930.0,0.92860349]
[1754945896747,0.10571034,118940.0,118930.0,0.92860349]
[1754945896942,0.18977824,118940.0,118930.0,0.92860349]
[1754945897446,0.15737824,118940.0,118930.0,0.92860349]
[1754945898148,0.18977824,118940.0,118930.0,0.92860349]
[1754945899849,0.10571034,118940.0,118930.0,0.92860349]
[1754945900251,0.08169034,118940.0,118930.0,0.92860349]
[1754945900749,0.04929034,118940.0,118930.0,0.92860349]
[1754945900948,0.03325034,118940.0,118930.0,0.92860349]
[1754945902939,0.12761034,118940.0,118930.0,0.92860349]
[1754945904251,0.08169034,118940.0,118930.0,0.92860349]
[1754945904448,0.04929034,118940.0,118930.0,0.92860349]
[1754945905240,0.03325034,118940.0,118930.0,0.92860349]
[1754945914455,0.3085919,118960.0,118950.0,0.0840603]
[1754945914658,0.3465319,118960.0,118950.0,0.8718003]
[1754945914850,0.3465319,118960.0,118950.0,0.9516603]
[1754945915253,0.4152809,118960.0,118950.0,0.9516603]
[1754945915650,0.4172809,118960.0,118950.0,0.9516603]
[1754945915957,0.80944899,118960.0,118950.0,0.9517603]
[1754945916353,0.81849899,118960.0,118950.0,0.9759303]
[1754945916859,0.83327899,118960.0,118950.0,0.9759303]
[1754945919460,0.4452109,118960.0,118950.0,0.9759303]
[1754945919657,0.83327899,118960.0,118950.0,0.9759303]
[1754945920161,0.4452109,118960.0,118950.0,0.9759303]
[1754945920461,0.83327899,118960.0,118950.0,0.9759303]
[1754945921757,0.4452109,118960.0,118950.0,0.9759303]
[1754945922061,0.83327899,118960.0,118950.0,0.9759303]
[1754945924764,0.88255037,118960.0,118950.0,1.41326977]
[1754945930663,0.9457109,118960.0,118950.0,0.0001]
[1754945930866,1.38451389,118960.0,118950.0,0.77206]
[1754945931057,1.02371389,118960.0,118950.0,0.97602]
[1754945931863,1.02371389,118960.0,118950.0,1.41335947]
[1754945932170,1.02371389,118960.0,118950.0,0.97602]
[1754945933469,0.88401389,118960.0,118950.0,0.97602]
[1754945937967,0.88401389,118960.0,118950.0,0.0001]
[1754945938167,1.68215336,118960.0,118950.0,0.77206]
[1754945938679,2.81194136,118960.0,118950.0,0.0001]
[1754945938866,0.0840669,118940.0,118930.0,0.0840738]
[1754945939176,0.64183637,118940.0,118930.0,0.9517738]
[1754945939376,0.64183637,118940.0,118930.0,0.9759338]
[1754945939974,0.64383637,118940.0,118930.0,0.9759338]
[1754945940164,0.64593637,118940.0,118930.0,0.9760338]
[1754945940872,0.59751723,118940.0,118930.0,0.9760338]
[1754945943876,0.73721723,118940.0,118930.0,0.9760338]
[1754945944084,0.0881669,118940.0,118930.0,1.72575413]
[1754945944877,0.0881669,118940.0,118930.0,1.3368338]
[1754945950272,0.0881669,118940.0,118930.0,1.72575413]
[1754945953182,0.0881669,118940.0,118930.0,1.3368338]
[1754945955986,0.0881669,118940.0,118930.0,1.72575413]
[1754945959683,0.0881669,118940.0,118930.0,1.3368338]
[1754945960086,0.0041,118940.0,118930.0,1.72575413]
[1754945960795,0.0041,118940.0,118930.0,1.77418687]
[1754945964294,0.0881669,118940.0,118930.0,1.77418687]
[1754945964994,0.0041,118940.0,118930.0,1.77418687]
[1754945970298,0.0881669,118940.0,118930.0,1.77418687]
[1754945970493,0.58837997,118940.0,118930.0,1.2689338]
[1754945970699,0.64542997,118940.0,118930.0,0.1947538]
[1754945970886,0.64542997,118940.0,118930.0,0.9758638]
[1754945975400,0.64542997,118940.0,118930.0,1.41321687]
[1754945975704,0.52551997,118940.0,118930.0,1.41321687]
[1754945976607,0.53514997,118940.0,118930.0,1.41321687]
[1754945977007,0.54980997,118940.0,118930.0,1.41321687]
[1754945977204,0.53514997,118940.0,118930.0,1.41321687]
[1754945977608,0.54980997,118940.0,118930.0,1.41321687]
[1754945979810,0.54980997,118940.0,118930.0,1.39817687]
[1754945980105,0.57288997,118940.0,118930.0,0.9608238]
[1754945980306,0.60707997,118940.0,118930.0,0.9608238]
[1754945980607,1.04443304,118940.0,118930.0,0.8805638]
[1754945980808,1.18413304,118940.0,118930.0,0.79645]
[1754945981012,1.40229304,118940.0,118930.0,0.79645]
[1754945981210,0.0840738,118930.0,118920.0,0.4448808]
[1754945981410,1.03418994,118930.0,118920.0,1.13256]
[1754945981612,1.03418994,118930.0,118920.0,1.2166408]
[1754945981803,1.03418994,118930.0,118920.0,1.13256]
[1754945982009,1.05124337,118930.0,118920.0,1.13256]
[1754945982408,1.06079797,118930.0,118920.0,1.13256]
[1754945982611,0.57628333,118930.0,118920.0,1.13266]
[1754945982805,1.0880214,118930.0,118920.0,1.13266]
[1754945983511,1.3061974,118930.0,118920.0,1.13266]
[1754945983712,1.3061974,118930.0,118920.0,0.3609]
[1754945983911,0.9171059,118930.0,118920.0,0.3609]
[1754945984408,2.1120974,118930.0,118920.0,0.3609]
[1754945985810,1.7230059,118930.0,118920.0,0.3609]
[1754945986414,2.1120974,118930.0,118920.0,0.3609]
[1754945986605,2.0620974,118930.0,118920.0,0.3609]
[1754945986809,2.1120974,118930.0,118920.0,0.33129]
[1754945987404,2.0620974,118930.0,118920.0,0.33129]
[1754945987611,1.6644513,118930.0,118920.0,0.35341]
[1754945987812,1.6644513,118930.0,118920.0,0.41038]
[1754945988416,2.0535428,118930.0,118920.0,0.33129]
[1754945995019,2.0535428,118930.0,118920.0,0.2784473]
[1754945995420,2.0535428,118930.0,118920.0,0.1733828]
[1754945995621,2.0535428,118930.0,118920.0,0.1060803]
[1754945996221,2.0535428,118930.0,118920.0,0.0804314]
[1754945996423,0.2237805,118920.0,118910.0,0.3608]
[1754945996722,1.0255635,118920.0,118910.0,0.3608]
[1754945996923,1.1937475,118920.0,118910.0,0.3608]
[1754946000423,0.2237949,118900.0,118890.0,0.81902]
[1754946000625,0.2473949,118900.0,118890.0,0.85093]
[1754946000824,0.6364864,118900.0,118890.0,0.85093]
[1754946001823,0.6364864,118900.0,118890.0,0.85293]
[1754946002029,0.6364864,118900.0,118890.0,0.08409]
[1754946002228,0.70363528,118900.0,118890.0,0.08409]
[1754946002535,1.26094278,118900.0,118890.0,0.005]
[1754946002730,0.87185128,118900.0,118890.0,0.005]
[1754946003622,0.73215128,118900.0,118890.0,0.005]
[1754946005230,0.73215128,118900.0,118890.0,0.03801]
[1754946005419,0.73215128,118900.0,118890.0,0.06013]
[1754946006318,0.73215128,118900.0,118890.0,0.005]
[1754946006837,1.12124278,118900.0,118890.0,0.005]
[1754946007028,0.73215128,118900.0,118890.0,0.005]
[1754946007430,0.73215128,118900.0,118890.0,0.08409]
[1754946007629,0.73215128,118900.0,118890.0,0.005]
[1754946011735,0.0841228,118860.0,118850.0,0.0841298]
[1754946011935,0.4833443,118860.0,118850.0,0.00971]
[1754946012230,0.4976143,118860.0,118850.0,0.03229]
[1754946012436,0.4976143,118860.0,118850.0,0.08053]
[1754946012627,0.4976143,118860.0,118850.0,0.1646598]
[1754946013139,0.4976143,118860.0,118850.0,0.1686598]
[1754946013833,0.4976143,118860.0,118850.0,0.08953]
[1754946018640,0.6373143,118860.0,118850.0,0.08953]
[1754946020042,0.2482228,118860.0,118850.0,0.08953]
[1754946020243,0.6373143,118860.0,118850.0,0.08953]
[1754946020539,0.6373143,118860.0,118850.0,0.08753]
[1754946020943,0.6373143,118860.0,118850.0,0.1716596]
[1754946021547,0.6373143,118860.0,118850.0,0.1686596]
[1754946021738,0.6373143,118860.0,118850.0,0.08453]
[1754946022643,0.6373143,118860.0,118850.0,0.1686596]
[1754946023844,0.6373143,118860.0,118850.0,0.08453]
[1754946027940,0.65416074,118860.0,118850.0,0.004]
[1754946028144,0.6373143,118860.0,118850.0,0.004]
[1754946029241,0.6373143,118860.0,118850.0,0.003]
[1754946029844,0.6373143,118860.0,118850.0,0.002]
[1754946030349,0.6373143,118860.0,118850.0,0.035]
[1754946030549,0.6373143,118860.0,118850.0,0.08253]
[1754946031144,0.6373143,118860.0,118850.0,1.328031]
[1754946031145,0.0001,118860.0,118850.0,1.328031]
[1754946031746,0.0001,118860.0,118850.0,1.546303]
[1754946032344,0.4733139,118860.0,118850.0,0.0861295]
[1754946032544,0.4976139,118860.0,118850.0,0.1569495]
[1754946032750,0.4976139,118860.0,118850.0,0.1666595]
[1754946039461,0.6373139,118860.0,118850.0,0.1666595]
[1754946040960,0.6373139,118860.0,118850.0,0.1514195]
[1754946041160,0.6373139,118860.0,118850.0,0.002]
[1754946042166,0.6373139,118860.0,118850.0,0.0861295]
[1754946042766,0.6373139,118860.0,118850.0,0.002]
[1754946043166,0.6755639,118860.0,118850.0,0.002]
[1754946043565,0.5358639,118860.0,118850.0,0.002]
[1754946046870,0.1467724,118860.0,118850.0,0.0861295]
[1754946047170,0.5358639,118860.0,118850.0,0.1809695]
[1754946048474,0.5358639,118860.0,118850.0,0.1507695]
[1754946048772,0.5358639,118860.0,118850.0,0.02442]
[1754946048967,0.5358639,118860.0,118850.0,0.002]
[1754946049872,0.5358639,118860.0,118850.0,0.001]
[1754946050071,0.0841295,118850.0,118840.0,0.2997095]
[1754946050272,0.534751,118850.0,118840.0,0.3472495]
[1754946050968,0.534751,118850.0,118840.0,0.263113]
[1754946051171,0.534751,118850.0,118840.0,0.1789765]
[1754946051372,0.534751,118850.0,118840.0,0.1799765]
[1754946052171,0.534751,118850.0,118840.0,0.09684]
[1754946052374,0.534751,118850.0,118840.0,0.1809766]
[1754946053874,0.674451,118850.0,118840.0,0.1809766]
[1754946060577,0.674451,118850.0,118840.0,0.1664067]
[1754946060777,0.674451,118850.0,118840.0,0.1809767]
[1754946063381,0.68290757,118850.0,118840.0,0.1809767]
[1754946063880,0.674451,118850.0,118840.0,0.1809767]
[1754946064282,0.2853595,118850.0,118840.0,0.1809767]
[1754946064478,0.674451,118850.0,118840.0,0.8582572]
[1754946064679,0.2853595,118850.0,118840.0,0.9530972]
[1754946064876,0.2853595,118850.0,118840.0,0.9760672]
[1754946065075,0.674451,118850.0,118840.0,0.9760672]
[1754946065382,0.2853595,118850.0,118840.0,0.9760672]
[1754946065783,0.674451,118850.0,118840.0,0.9760672]
[1754946066383,0.2853595,118850.0,118840.0,0.9760672]
[1754946066578,0.674451,118850.0,118840.0,0.9760672]
[1754946068585,0.534751,118850.0,118840.0,0.9760672]
[1754946070284,0.2385793,118870.0,118860.0,0.0841231]
[1754946070485,0.2385793,118870.0,118860.0,0.9744931]
[1754946070486,0.347892,118870.0,118860.0,0.9744931]
[1754946070785,0.7369835,118870.0,118860.0,0.9744931]
[1754946071284,0.7028835,118870.0,118860.0,0.9744931]
[1754946071490,0.7039835,118870.0,118860.0,0.9745931]
[1754946075782,0.1330166,118870.0,118860.0,0.9745931]
[1754946076584,0.0852166,118870.0,118860.0,0.9745931]
[1754946076891,0.1091566,118870.0,118860.0,0.9745931]
[1754946079594,0.1251666,118870.0,118860.0,0.9745931]
[1754946080590,0.5142581,118870.0,118860.0,0.9745931]
[1754946080793,0.0011,118870.0,118860.0,0.9745931]
[1754946080992,0.02504,118870.0,118860.0,0.9745931]
[1754946081689,0.0011,118870.0,118860.0,1.3636846]
[1754946082794,0.0011,118870.0,118860.0,0.9745931]
[1754946084099,0.0001,118870.0,118860.0,0.9745931]
[1754946088210,0.5573002,118890.0,118880.0,0.084109]
[1754946088405,0.5972502,118890.0,118880.0,0.975689]
[1754946088597,0.2081587,118890.0,118880.0,0.975689]
[1754946088798,0.84024928,118900.0,118880.0,1.2280113]
[1754946088998,0.76657848,118900.0,118890.0,0.1578019]
[1754946089197,0.80588848,118900.0,118890.0,0.2036819]
[1754946089402,0.80598848,118900.0,118890.0,0.2037819]
[1754946089810,0.80598848,118900.0,118890.0,0.1498219]
[1754946090106,0.80598848,118900.0,118890.0,0.1788419]
[1754946090508,0.80898848,118900.0,118890.0,0.1788419]
[1754946090706,0.80898848,118900.0,118890.0,0.2037819]
[1754946091409,0.81098848,118900.0,118890.0,0.2037819]
[1754946092109,0.77688848,118900.0,118890.0,0.2037819]
[1754946095417,0.38779698,118900.0,118890.0,0.2037819]
[1754946095607,0.20608368,118900.0,118890.0,0.2037819]
[1754946096004,0.60868518,118900.0,118890.0,0.2037819]
[1754946109927,0.52459038,118900.0,118890.0,0.2037819]
[1754946110437,0.13549888,118900.0,118890.0,0.2037819]
[1754946110837,0.21959388,118900.0,118890.0,0.2037819]
[1754946111238,0.13549888,118900.0,118890.0,0.2037819]
[1754946113431,0.12171888,118900.0,118890.0,0.2026219]
[1754946113637,0.13602888,118900.0,118890.0,0.2026219]
[1754946117040,0.22012388,118900.0,118890.0,0.2026219]
[1754946117234,0.13602888,118900.0,118890.0,0.2026219]
[1754946120342,0.60921538,118900.0,118890.0,0.0842019]
[1754946120540,0.60921538,118900.0,118890.0,0.8558419]
[1754946121248,0.60921538,118900.0,118890.0,0.8902219]
[1754946121447,0.60921538,118900.0,118890.0,0.9130119]
[1754946122949,0.60921538,118900.0,118890.0,0.9227519]
[1754946123248,0.60921538,118900.0,118890.0,0.9373419]
[1754946124049,0.60921538,118900.0,118890.0,0.9533819]
[1754946126948,0.52512038,118900.0,118890.0,0.9771619]
[1754946127447,0.60921538,118900.0,118890.0,0.9771619]
[1754946129644,0.22012388,118900.0,118890.0,0.9771619]
[1754946129951,0.60921538,118900.0,118890.0,0.9771619]
[1754946131949,0.22012388,118900.0,118890.0,0.9771619]
[1754946132155,0.60921538,118900.0,118890.0,0.9771619]
[1754946132754,0.6579199,118900.0,118890.0,0.9771619]
[1754946136560,1.11276786,118900.0,118890.0,0.0842019]
[1754946136856,1.11276786,118900.0,118890.0,0.8557219]
[1754946137755,1.11276786,118900.0,118890.0,0.8876119]
[1754946138156,1.11276786,118900.0,118890.0,0.9087819]
[1754946138357,1.11276786,118900.0,118890.0,0.9186619]
[1754946138553,1.11276786,118900.0,118890.0,0.9087819]
[1754946138754,0.62640445,118900.0,118890.0,0.9087819]
[1754946140257,0.62640445,118900.0,118890.0,0.8557219]
[1754946141657,0.62640445,118900.0,118890.0,0.8876119]
[1754946141857,0.62640445,118900.0,118890.0,0.9087819]
[1754946142350,0.62640445,118900.0,118890.0,0.9186619]
[1754946142555,0.60935251,118900.0,118890.0,0.9186619]
[1754946142756,0.60935251,118900.0,118890.0,0.9321919]
[1754946144958,0.60935251,118900.0,118890.0,0.9480919]
[1754946151665,0.60935251,118900.0,118890.0,0.9715519]
[1754946160773,0.65794739,118900.0,118890.0,0.9715519]
[1754946165179,0.22012388,118900.0,118890.0,0.9715519]
[1754946165371,0.65794739,118900.0,118890.0,0.9715519]
[1754946168287,0.22012388,118900.0,118890.0,0.9715519]
[1754946168781,0.65794739,118900.0,118890.0,0.9715519]
[1754946178683,0.79754739,118900.0,118890.0,0.9715519]
[1754946178878,0.65794739,118900.0,118890.0,0.9715519]
[1754946180296,0.65794739,118900.0,118890.0,0.2000319]
[1754946180591,1.0957709,118900.0,118890.0,0.9711519]
[1754946181192,0.65794739,118900.0,118890.0,0.9711519]
[1754946182291,0.60987739,118900.0,118890.0,0.9711519]
[1754946182493,0.65865739,118900.0,118890.0,0.9711519]
[1754946184595,0.07224888,118900.0,118890.0,1.40897541]
[1754946184796,0.51007239,118900.0,118890.0,1.40897541]
[1754946185184,0.07224888,118900.0,118890.0,1.84679892]
[1754946185394,0.0051,118900.0,118890.0,1.84679892]
[1754946185594,0.0051,118900.0,118890.0,1.40897541]
[1754946186595,0.07306292,118900.0,118890.0,1.40897541]
[1754946186797,0.0051,118900.0,118890.0,1.40897541]
[1754946187292,0.43782351,118910.0,118900.0,0.2522736]
[1754946187496,0.47707351,118910.0,118900.0,0.89408191]
[1754946188601,0.48007351,118910.0,118900.0,0.89408191]
[1754946188794,0.48017351,118910.0,118900.0,0.89418191]
[1754946189501,0.56426121,118910.0,118900.0,0.89418191]
[1754946189696,0.48317351,118910.0,118900.0,0.89418191]
[1754946190802,0.56726121,118910.0,118900.0,0.4563584]
[1754946191003,0.56726121,118910.0,118900.0,0.89418191]
[1754946191205,0.1294377,118910.0,118900.0,0.89418191]
[1754946191403,0.56726121,118910.0,118900.0,0.89418191]
[1754946192004,0.48317351,118910.0,118900.0,0.89418191]
[1754946192205,0.45902351,118910.0,118900.0,0.89418191]
[1754946193104,0.48163351,118910.0,118900.0,0.89418191]
[1754946194606,0.56572121,118910.0,118900.0,0.89418191]
[1754946195601,0.48163351,118910.0,118900.0,0.89418191]
[1754946196200,0.56572121,118910.0,118900.0,0.89418191]
[1754946196507,0.57545121,118910.0,118900.0,0.89418191]
[1754946196805,0.62447121,118910.0,118900.0,0.89418191]
[1754946197206,0.54038351,118910.0,118900.0,0.89418191]
[1754946197408,0.10256,118910.0,118900.0,0.4563584]
[1754946197606,0.54038351,118910.0,118900.0,0.89418191]
[1754946201208,0.52618351,118910.0,118900.0,0.89418191]
[1754946203619,0.54038351,118910.0,118900.0,0.89418191]
[1754946203821,0.54038351,118910.0,118900.0,0.4563584]
[1754946204020,0.54038351,118910.0,118900.0,0.89418191]
[1754946205718,0.10256,118910.0,118900.0,0.89418191]
[1754946206029,0.54038351,118910.0,118900.0,0.89418191]
[1754946208418,0.10256,118910.0,118900.0,0.89418191]
[1754946208724,0.49136351,118910.0,118900.0,0.89418191]
[1754946209425,0.52618351,118910.0,118900.0,0.89418191]
[1754946209722,0.54038351,118910.0,118900.0,0.89418191]
[1754946211221,0.56234351,118910.0,118900.0,0.89418191]
[1754946212122,0.12452,118910.0,118900.0,0.89418191]
[1754946212426,0.56234351,118910.0,118900.0,0.89418191]
[1754946213128,0.51332351,118910.0,118900.0,0.89418191]
[1754946213320,0.11032,118910.0,118900.0,0.89418191]
[1754946213518,0.54814351,118910.0,118900.0,0.89418191]
[1754946213728,0.11032,118910.0,118900.0,0.89418191]
[1754946213929,0.54814351,118910.0,118900.0,0.89418191]
[1754946214130,0.56234351,118910.0,118900.0,0.89418191]
[1754946215833,0.56234351,118910.0,118900.0,0.4563584]
[1754946216132,0.56234351,118910.0,118900.0,0.89418191]
[1754946216433,0.12452,118910.0,118900.0,0.4563584]
[1754946216632,0.56234351,118910.0,118900.0,0.89418191]